bitfinex/quotes_ETHUSD_20220103
["timestamp","ask_amount","ask_price","bid_price","bid_amount"]
[1641236752551,0.66754,3747.3,3746.9,0.00352708]
[1641236752751,4.78644256,3747.0,3746.9,0.00352708]
[1641236752954,5.97024256,3747.0,3746.9,0.00352708]
[1641236753180,7.33615999,3747.0,3746.9,0.11286505]
[1641236753382,8.46622899,3747.0,3746.9,0.11286505]
[1641236753583,0.66772,3746.8,3746.5,3.61402552]
[1641236753789,5.156,3746.7,3746.5,3.61402552]
[1641236753982,5.156,3746.7,3746.6,0.00170527]
[1641236753983,5.456,3746.7,3746.6,0.00170527]
[1641236754983,6.79136,3746.7,3746.6,0.00170527]
[1641236755184,6.12368,3746.7,3746.6,0.00170527]
[1641236755384,5.82368,3746.7,3746.6,0.00170527]
[1641236756691,5.456,3746.7,3746.6,0.00170527]
[1641236756959,0.682,3746.7,3746.6,0.00170527]
[1641236758358,0.982,3746.7,3746.6,0.00170527]
[1641236758759,0.382,3746.7,3746.6,0.00170527]
[1641236758967,0.382,3747.4,3746.6,0.00170527]
[1641236759364,0.0022737,3747.3,3746.6,0.00170527]
[1641236759761,0.00170527,3747.2,3746.6,0.00170527]
[1641236760161,0.00113685,3747.1,3746.6,0.00170527]
[1641236760463,0.01041611,3746.7,3746.6,0.00170527]
[1641236761896,2.71041611,3746.7,3746.6,0.00170527]
[1641236762196,3.01041611,3746.7,3746.6,0.00170527]
[1641236764453,2.71041611,3746.7,3746.6,0.00170527]
[1641236764649,2.71041611,3746.7,3746.5,0.00227369]
[1641236764848,2.703305,3746.7,3746.6,5.35025948]
[1641236765052,2.703305,3746.7,3746.6,6.35025948]
[1641236765452,2.703305,3746.7,3746.6,6.45561848]
[1641236766456,2.703305,3746.7,3746.6,5.45561848]
[1641236766659,2.703305,3746.7,3746.6,5.443559]
[1641236767257,3.003305,3746.7,3746.6,5.443559]
[1641236768098,2.703305,3746.7,3746.6,7.97567391]
[1641236768283,2.703305,3746.7,3746.6,5.45570632]
[1641236768981,2.703305,3746.7,3746.6,9.69472054]
[1641236769384,2.703305,3746.7,3746.6,7.26418597]
[1641236769684,2.703305,3746.7,3746.6,5.45570632]
[1641236771090,2.703305,3746.7,3746.6,8.40742718]
[1641236772941,2.703305,3746.7,3746.6,5.45570632]
[1641236773844,2.703305,3746.7,3746.6,7.80112891]
[1641236774043,2.703305,3746.7,3746.6,7.80334065]
[1641236774449,0.0022737,3747.3,3746.7,0.877795]
[1641236774646,0.0022737,3747.3,3747.0,0.66712]
[1641236774846,0.00170527,3747.2,3747.1,5.3375]
[1641236775045,0.00170527,3747.2,3747.1,6.3375]
[1641236775686,0.00170527,3747.2,3747.1,7.34494477]
[1641236776283,0.00170527,3747.2,3747.1,8.01207477]
[1641236776482,0.00170527,3747.2,3747.1,10.4796484]
[1641236776683,0.00170527,3747.2,3747.1,9.4796484]
[1641236777283,0.00170527,3747.2,3747.1,8.01207477]
[1641236778285,0.00170527,3747.2,3747.1,7.96207477]
[1641236778683,0.00170527,3747.2,3747.1,10.45513762]
[1641236779343,0.00170527,3747.2,3747.1,8.64407477]
[1641236779551,0.06090332,3748.2,3747.1,8.64407477]
[1641236779552,0.06090332,3748.2,3747.6,0.66698]
[1641236779944,0.00511581,3748.1,3747.7,5.3366]
[1641236780145,0.00511581,3748.1,3747.8,1.0]
[1641236780447,0.66698,3749.6,3748.0,0.01273721]
[1641236780644,0.66698,3749.6,3748.0,1.01273721]
[1641236780645,0.73289743,3749.6,3748.0,1.01273721]
[1641236780846,0.00682109,3749.3,3748.0,1.01273721]
[1641236781249,0.00625266,3749.2,3748.0,1.01273721]
[1641236781446,0.00625266,3749.2,3748.9,1.07952905]
[1641236781651,0.00568424,3749.1,3748.9,1.07952905]
[1641236782052,3.04962,3750.4,3748.9,1.07952905]
[1641236782053,0.00511582,3749.0,3748.9,1.07952905]
[1641236782247,0.00511582,3749.0,3748.9,6.41442905]
[1641236782653,0.00511582,3749.0,3748.9,5.3349]
[1641236783295,0.15575466,3749.0,3748.9,8.28546124]
[1641236784098,0.45575466,3749.0,3748.9,8.28546124]
[1641236784300,0.83775466,3749.0,3748.9,8.28546124]
[1641236784898,0.53775466,3749.0,3748.9,8.28546124]
[1641236785098,0.83775466,3749.0,3748.9,8.28546124]
[1641236785298,0.53775466,3749.0,3748.9,8.28546124]
[1641236785497,0.83775466,3749.0,3748.9,5.3349]
[1641236785897,1.50489466,3749.0,3748.9,5.3349]
[1641236786497,1.20489466,3749.0,3748.9,5.3349]
[1641236786701,0.53775466,3749.0,3748.9,5.3349]
[1641236787633,0.53775466,3749.0,3748.9,8.28558855]
[1641236791992,0.15575466,3749.0,3748.9,8.28558855]
[1641236795643,0.15575466,3749.0,3748.9,8.28900985]
[1641236795845,0.15575466,3749.0,3748.9,8.29243115]
[1641236796045,0.15575466,3749.0,3748.9,9.59243115]
[1641236796645,0.15575466,3749.0,3748.9,12.03878977]
[1641236797045,0.15575466,3749.0,3748.9,9.59243115]
[1641236797248,0.15575466,3749.0,3748.9,11.96511168]
[1641236797446,0.00511582,3749.0,3748.9,11.96511168]
[1641236798384,0.00511582,3749.0,3748.9,11.99125212]
[1641236799591,0.00511582,3749.0,3748.9,9.89243115]
[1641236799798,0.00511582,3749.0,3748.9,11.60785115]
[1641236800395,0.00511582,3749.0,3748.9,27.16785115]
[1641236800595,2.7,3749.1,3748.9,27.16785115]
[1641236800792,2.7,3749.1,3749.0,0.3]
[1641236800992,2.7,3749.1,3749.0,8.35022]
[1641236801838,2.7,3749.1,3749.0,11.00462871]
[1641236802040,2.7,3749.1,3749.0,13.95531726]
[1641236803241,2.7,3749.1,3749.0,11.30090855]
[1641236805792,2.7,3749.1,3749.0,9.96748855]
[1641236806188,2.7,3749.1,3749.0,9.58548855]
[1641236806389,2.7,3749.1,3749.0,9.10152073]
[1641236806588,2.7,3749.1,3749.0,8.80152073]
[1641236807390,2.7,3749.1,3749.0,9.46822073]
[1641236808392,2.7,3749.1,3749.0,7.00491532]
[1641236808793,2.7,3749.1,3749.0,9.35679873]
[1641236809438,2.7,3749.1,3749.0,7.00491532]
[1641236809638,2.7,3749.1,3749.0,9.35120123]
[1641236809841,2.7,3749.1,3749.0,7.00491532]
[1641236810039,2.7,3749.1,3749.0,9.36352177]
[1641236810240,2.7,3749.1,3749.0,7.00491532]
[1641236810851,2.7,3749.1,3749.0,9.66906638]
[1641236811745,2.7,3749.1,3749.0,12.58175377]
[1641236811946,0.06090064,3749.7,3749.4,0.66668]
[1641236812148,0.06090064,3749.7,3749.5,6.6673826]
[1641236812349,0.00341054,3749.6,3749.5,9.06932399]
[1641236812648,0.00341054,3749.6,3749.5,6.36932399]
[1641236812849,0.00341054,3749.6,3749.5,3.9673826]
[1641236813085,0.00341054,3749.6,3749.5,6.34237111]
[1641236813287,0.00341054,3749.6,3749.5,7.00907111]
[1641236813594,0.00341054,3749.6,3749.5,5.3007652]
[1641236813788,0.00341054,3749.6,3749.5,5.6007652]
[1641236814387,0.00341054,3749.6,3749.5,7.99256564]
[1641236816493,0.00341054,3749.6,3749.5,8.29256564]
[1641236816941,0.00341054,3749.6,3749.5,8.29592168]
[1641236817143,0.00341054,3749.6,3749.5,8.29927772]
[1641236817647,0.00341054,3749.6,3749.5,8.24927772]
[1641236818449,0.00341054,3749.6,3749.5,11.21954698]
[1641236820352,0.00341054,3749.6,3749.5,26.77954698]
[1641236820614,0.06114433,3750.0,3749.6,6.3034]
[1641236820812,0.01189962,3750.6,3750.1,0.66648]
[1641236821005,0.01189962,3750.6,3750.3,0.6665031]
[1641236821210,0.01189962,3750.6,3750.4,2.46413108]
[1641236821405,0.01189962,3750.6,3750.5,6.6992]
[1641236821705,0.01758385,3750.6,3750.5,8.5058208]
[1641236821908,0.01758385,3750.6,3750.5,9.65275325]
[1641236822506,0.01758385,3750.6,3750.5,7.84613245]
[1641236822707,0.01758385,3750.6,3750.5,10.81640171]
[1641236822910,2.71758385,3750.6,3750.5,11.11640171]
[1641236825648,2.71758385,3750.6,3750.5,11.41640171]
[1641236827451,2.71758385,3750.6,3750.5,11.79840171]
[1641236827653,2.71758385,3750.6,3750.5,27.35840171]
[1641236827851,2.71758385,3750.6,3750.5,27.36163335]
[1641236829088,0.06114261,3751.2,3750.6,0.66637]
[1641236829291,0.06114261,3751.2,3750.9,1.3327322]
[1641236829493,0.06114261,3751.2,3751.0,9.43421715]
[1641236829494,0.00284212,3751.1,3751.0,9.43421715]
[1641236829694,0.00284212,3751.1,3751.0,9.73421715]
[1641236830094,0.00284212,3751.1,3751.0,6.6985]
[1641236831297,0.29883819,3751.1,3751.0,9.66876926]
[1641236832546,0.00284212,3751.1,3751.0,9.66876926]
[1641236833546,2.70284212,3751.1,3751.0,9.66876926]
[1641236834750,0.00284212,3751.1,3751.0,9.66876926]
[1641236835348,0.29883819,3751.1,3751.0,9.66876926]
[1641236836711,0.00284212,3751.1,3751.0,9.66876926]
[1641236837305,0.00284212,3751.1,3751.0,9.61663926]
[1641236837705,0.29569819,3751.6,3751.0,9.60868926]
[1641236838105,0.00227369,3751.5,3751.0,9.60868926]
[1641236838605,0.00170527,3751.4,3751.0,9.61183815]
[1641236838804,0.00170527,3751.4,3751.1,0.00314889]
[1641236839007,0.00113684,3751.3,3751.0,6.50317778]
[1641236840440,0.00113684,3751.3,3751.0,7.16967778]
[1641236841347,0.00113684,3751.3,3751.0,9.495719]
[1641236841542,0.00113684,3751.3,3751.0,7.16967778]
[1641236841743,0.00113684,3751.3,3751.0,8.50257868]
[1641236842543,0.00113684,3751.3,3751.2,1.19549306]
[1641236842744,0.00113684,3751.3,3751.2,8.08899306]
[1641236843199,2.52216553,3752.2,3751.6,1.33255]
[1641236843398,2.52216553,3752.2,3751.8,0.66622]
[1641236843597,1.12112561,3752.7,3751.9,7.2745]
[1641236843797,1.12112561,3752.7,3752.6,1.41759967]
[1641236844001,0.0578,3753.4,3752.6,1.41759967]
[1641236844200,2.02445931,3753.4,3752.6,1.41759967]
[1641236844399,0.0096632,3753.0,3752.6,1.41759967]
[1641236844799,0.00909478,3752.9,3752.6,1.41759967]
[1641236845201,0.00852636,3752.8,3752.6,1.41759967]
[1641236845599,0.00795793,3752.7,3752.6,1.41759967]
[1641236846001,0.00795793,3752.7,3752.1,0.66633]
[1641236846203,0.00795793,3752.7,3752.3,0.06067414]
[1641236846500,0.06067414,3753.3,3752.3,0.06067414]
[1641236846501,0.00738951,3752.6,3752.3,0.06067414]
[1641236846703,0.00738951,3752.6,3752.4,6.8918]
[1641236846938,0.00682109,3752.5,3752.4,6.8918]
[1641236848343,0.00682109,3752.5,3752.4,6.67643125]
[1641236848540,0.30682109,3752.5,3752.4,6.67643125]
[1641236848741,0.97326109,3752.5,3752.4,6.67643125]
[1641236848939,1.65526109,3752.5,3752.4,6.67643125]
[1641236849339,1.65526109,3752.5,3752.4,6.678744]
[1641236851095,1.65526109,3752.5,3752.4,6.2613225]
[1641236851697,1.35526109,3752.5,3752.4,6.2613225]
[1641236856942,1.05526109,3752.5,3752.4,6.2613225]
[1641236857148,0.00682109,3752.5,3752.4,6.2613225]
[1641236858787,0.00682109,3752.5,3752.4,10.34760832]
[1641236860291,0.00682109,3752.5,3752.4,10.34991519]
[1641236861857,0.00682109,3752.5,3752.4,10.64991519]
[1641236862452,0.00682109,3752.5,3752.4,11.31612289]
[1641236863050,0.00682109,3752.5,3752.4,12.31612289]
[1641236864053,0.00682109,3752.5,3752.4,11.64991519]
[1641236864653,0.00682109,3752.5,3752.4,12.01613519]
[1641236868495,0.00682109,3752.5,3752.4,11.34991519]
[1641236869937,0.00682109,3752.5,3752.4,10.2734393]
[1641236877248,0.06067451,3753.1,3752.4,10.2734393]
[1641236877453,0.06067451,3753.1,3753.0,1.36511624]
[1641236879254,0.66619,3753.4,3753.0,1.36511624]
[1641236879656,0.01136847,3753.3,3753.0,1.36511624]
[1641236879856,0.01136847,3753.3,3753.0,4.37492617]
[1641236880055,0.01080005,3753.2,3753.0,4.37492617]
[1641236880604,0.01023163,3753.1,3753.0,1.36511624]
[1641236881205,0.01023163,3753.1,3753.0,1.36735798]
[1641236881406,0.01023163,3753.1,3753.0,1.36959972]
[1641236881808,0.66619,3753.4,3753.0,1.36959972]
[1641236881809,0.57642163,3753.4,3753.0,1.36959972]
[1641236882206,0.00113684,3753.3,3753.0,1.36959972]
[1641236884657,0.00113684,3753.3,3753.0,0.00448348]
[1641236884863,0.66734684,3753.3,3753.0,0.00448348]
[1641236885062,0.3,3753.2,3753.0,0.00448348]
[1641236885558,0.6,3753.2,3753.0,0.00448348]
[1641236885761,2.43586552,3753.2,3753.0,0.00448348]
[1641236886362,3.10220912,3753.2,3753.0,0.00448348]
[1641236886663,5.75524809,3753.2,3753.0,0.00448348]
[1641236888094,2.80220912,3753.2,3753.0,0.00448348]
[1641236888395,3.10220912,3753.2,3753.0,0.00448348]
[1641236888998,2.66592106,3753.1,3753.0,0.00448348]
[1641236893645,3.33222106,3753.2,3753.0,0.00448348]
[1641236894445,0.6663,3753.2,3753.0,0.00448348]
[1641236896704,1.3326201,3753.2,3753.0,0.00448348]
[1641236898204,3.99854116,3753.2,3753.0,0.00448348]
[1641236899008,2.66592106,3753.1,3753.0,0.00448348]
[1641236900658,1.3326201,3753.2,3753.0,0.00448348]
[1641236901860,2.67080634,3753.1,3753.0,0.00448348]
[1641236906013,1.3326201,3753.2,3753.0,0.00448348]
[1641236907044,2.67047592,3753.1,3753.0,0.00448348]
[1641236908248,1.3326201,3753.2,3753.0,0.00448348]
[1641236908647,1.2656201,3753.2,3753.0,0.00448348]
[1641236909352,0.6663,3753.2,3753.0,0.00448348]
[1641236910598,2.67054033,3753.1,3753.0,0.00448348]
[1641236911207,2.67054033,3753.1,3753.0,1.39734652]
[1641236911409,2.67054033,3753.1,3753.0,1.69734652]
[1641236911804,2.67054033,3753.1,3753.0,9.22114652]
[1641236912007,2.67054033,3753.1,3753.0,9.17114652]
[1641236912206,2.67054033,3753.1,3753.0,10.17114652]
[1641236912408,2.73075238,3753.6,3753.0,13.18068615]
[1641236912606,2.73075238,3753.6,3753.2,1.3321389]
[1641236912808,2.73075238,3753.6,3753.3,7.5233]
[1641236912809,0.00227369,3753.5,3753.3,7.5233]
[1641236913208,2.67054033,3753.6,3753.4,1.0]
[1641236913608,0.00227369,3753.5,3753.4,1.0]
[1641236913811,0.00227369,3753.5,3753.4,8.5232]
[1641236914866,0.00227369,3753.5,3753.4,11.53273963]
[1641236916068,0.00227369,3753.5,3753.4,12.1454173]
[1641236916268,0.00227369,3753.5,3753.4,12.5274173]
[1641236916467,0.00227369,3753.5,3753.4,38.45200233]
[1641236916669,0.00227369,3753.5,3753.4,54.01200233]
[1641236917067,7.369e-05,3753.5,3753.4,54.01200233]
[1641236917271,3.60304114,3754.3,3753.6,4.85]
[1641236917468,3.60304114,3754.3,3753.8,0.66576]
[1641236917469,2.83804114,3754.3,3753.8,0.66576]
[1641236917670,0.00284212,3754.0,3753.9,23.4645]
[1641236917869,7.40773437,3756.0,3754.0,8.5]
[1641236918119,2.68415396,3754.8,3754.7,0.01228731]
[1641236918312,2.68415396,3754.8,3754.7,24.08138731]
[1641236918508,2.68870135,3754.8,3754.7,25.55208004]
[1641236918709,2.68870135,3754.8,3754.7,26.55208004]
[1641236919508,0.00454739,3754.8,3754.7,26.55208004]
[1641236919710,0.00454739,3754.8,3754.7,27.21774004]
[1641236919916,0.00454739,3754.8,3754.7,32.03368286]
[1641236921212,0.00454739,3754.8,3754.7,30.22727967]
[1641236922058,0.00454739,3754.8,3754.7,14.66727967]
[1641236922263,0.00454739,3754.8,3754.7,30.22727967]
[1641236924063,0.00454739,3754.8,3754.7,30.22907126]
[1641236925912,10.01860703,3755.3,3754.9,15.56]
[1641236926112,10.01860703,3755.3,3755.2,7.56270902]
[1641236926313,10.01860703,3755.3,3755.2,23.55039091]
[1641236926709,10.01860703,3755.3,3755.2,24.55039091]
[1641236927108,9.69138655,3755.3,3755.2,24.55039091]
[1641236927309,8.655e-05,3755.3,3755.2,24.55039091]
[1641236927512,8.655e-05,3755.3,3755.2,40.11039091]
[1641236927908,8.655e-05,3755.3,3755.2,32.56039091]
[1641236928712,8.655e-05,3755.3,3755.2,39.17924044]
[1641236928913,8.655e-05,3756.0,3755.2,40.27743867]
[1641236929115,8.655e-05,3756.0,3755.8,0.66543]
[1641236929366,8.655e-05,3756.0,3755.9,26.04381233]
[1641236929553,8.655e-05,3756.0,3755.9,24.0617]
[1641236929754,0.00690763,3756.0,3755.9,25.0617]
[1641236929953,0.00690763,3756.0,3755.9,24.7617]
[1641236930358,0.00690763,3756.0,3755.9,26.13616396]
[1641236930557,0.00690763,3756.0,3755.9,29.14570359]
[1641236931161,0.00690763,3756.0,3755.9,26.13616396]
[1641236931362,0.00682108,3756.0,3755.9,26.13616396]
[1641236931560,0.06020675,3756.9,3755.9,26.13616396]
[1641236931766,0.06020675,3756.9,3756.5,0.6654117]
[1641236931968,0.0073895,3757.3,3756.8,0.01267045]
[1641236932169,0.0073895,3757.3,3757.0,4.774]
[1641236932364,6.12,3758.5,3757.1,23.46]
[1641236932365,0.00682108,3757.2,3757.1,23.46]
[1641236932564,0.00682108,3757.2,3757.1,25.06]
[1641236932764,6.12,3758.5,3757.2,15.56]
[1641236932970,6.12,3758.5,3757.3,7.8997]
[1641236933224,0.00682108,3758.4,3757.8,1.33026]
[1641236933420,0.00682108,3758.4,3758.1,0.6651085]
[1641236933721,0.00625266,3758.3,3758.2,7.5164]
[1641236935629,0.00625266,3758.3,3758.2,8.51915642]
[1641236937771,0.00625266,3758.3,3758.2,7.51915642]
[1641236939374,0.00625266,3758.3,3758.2,9.85855495]
[1641236939574,0.00625266,3758.3,3758.2,12.86471946]
[1641236945764,0.00625266,3758.3,3758.2,11.52532093]
[1641236951213,0.00625266,3758.3,3758.2,11.63067993]
[1641236951615,0.00625266,3758.3,3758.2,15.23998983]
[1641236952459,0.00625266,3758.3,3758.2,11.63067993]
[1641236956720,0.00625266,3758.3,3758.2,10.63067993]
[1641236957120,0.00625266,3758.3,3758.2,10.52394272]
[1641236958827,0.00625266,3758.3,3758.2,7.51777821]
[1641236959963,0.00625266,3758.3,3758.2,10.52388187]
[1641236961475,0.00625266,3758.3,3758.2,7.51777821]
[1641236964037,1.33054,3758.4,3758.2,7.51777821]
[1641236964235,0.66526,3758.5,3758.2,7.51777821]
[1641236964436,0.66526,3758.4,3758.3,1.0]
[1641236964633,0.67208108,3758.4,3758.3,8.5163]
[1641236967671,0.67208108,3758.4,3758.3,8.51751327]
[1641236967871,0.67208108,3758.4,3758.3,8.51872654]
[1641236970610,0.67208108,3758.4,3758.3,11.52444282]
[1641236971416,0.67208108,3758.4,3758.3,8.51872654]
[1641236974667,0.00682108,3758.4,3758.3,8.51872654]
[1641236975070,0.00682108,3758.4,3758.3,11.0137837]
[1641236975467,0.00682108,3758.4,3758.3,8.51872654]
[1641236977072,0.00682108,3758.4,3758.3,11.52447036]
[1641236983761,0.00682108,3758.4,3758.3,10.52447036]
[1641236985066,0.00682108,3758.4,3758.3,11.52447036]
[1641236994525,2.7,3758.5,3758.3,11.52447036]
[1641236994930,2.7,3758.5,3758.4,1.0]
[1641236995124,2.7,3758.5,3758.4,8.5161]
[1641236995327,2.7073895,3758.5,3758.4,8.5161]
[1641236995524,2.6573895,3758.5,3758.4,11.52184382]
[1641236996427,3.9877995,3758.5,3758.4,11.52184382]
[1641237009112,2.6573895,3758.5,3758.4,11.52184382]
[1641237016721,2.6573895,3758.5,3758.4,11.90384382]
[1641237016924,2.6573895,3758.5,3758.4,13.37564382]
[1641237017321,2.6573895,3758.5,3758.4,28.93564382]
[1641237018117,1.84593543,3758.5,3758.4,28.93564382]
[1641237018319,1.84593543,3758.5,3758.4,33.70964382]
[1641237019019,1.84593543,3758.5,3758.4,18.14964382]
[1641237019670,1.84593543,3758.5,3758.4,10.90384382]
[1641237019873,1.84593543,3758.5,3758.4,10.52184382]
[1641237021281,1.84593543,3758.5,3758.4,10.52304529]
[1641237022077,1.84593543,3758.5,3758.4,11.52304529]
[1641237025413,1.83854593,3758.5,3758.4,11.52304529]
[1641237030373,1.83854593,3758.5,3758.4,11.52184382]
[1641237030829,1.83854593,3758.5,3758.4,11.82184382]
[1641237031931,1.83854593,3758.5,3758.4,12.12184382]
[1641237032330,1.83854593,3758.5,3758.4,11.52303941]
[1641237035390,1.83854593,3758.5,3758.4,11.90503941]
[1641237036199,4.34209127,3758.5,3758.4,10.15682011]
[1641237036395,4.34209127,3758.5,3758.1,0.1647565]
[1641237036396,0.23508129,3758.3,3758.1,0.0094565]
[1641237036595,3.0,3758.1,3757.4,3.6093099]
[1641237036791,0.01206209,3757.5,3757.4,3.6093099]
[1641237036994,0.82656209,3757.5,3757.4,3.6093099]
[1641237037191,0.82656209,3757.5,3756.8,4.51174577]
[1641237037192,1.12826736,3757.5,3756.8,4.51174577]
[1641237037393,1.33116,3757.3,3757.0,3.52162137]
[1641237037793,1.33117,3757.3,3756.6,5.92370243]
[1641237037994,1.55120685,3757.4,3756.6,3.91740648]
[1641237038230,11.00354534,3757.2,3755.9,6.01161437]
[1641237038428,1.33154,3756.8,3755.9,6.01161437]
[1641237038629,2.89812907,3756.7,3756.0,0.00397896]
[1641237038927,1.33171,3756.5,3755.5,1.40230136]
[1641237039128,0.00341054,3756.6,3755.6,5.3248]
[1641237039330,0.00227369,3756.4,3755.6,5.3248]
[1641237039535,0.00284211,3756.5,3755.7,0.00170527]
[1641237039730,0.00170527,3756.3,3755.7,0.00170527]
[1641237039930,0.00227369,3756.4,3755.8,5.3251]
[1641237040130,0.00113684,3756.2,3755.9,1.0]
[1641237040332,0.00170527,3756.3,3756.0,5.3248]
[1641237040530,0.00341054,3756.6,3756.0,5.3248]
[1641237040731,0.00113684,3756.2,3756.0,5.3248]
[1641237041033,0.00284211,3756.5,3756.0,5.3248]
[1641237041232,0.00341054,3756.6,3756.0,5.3248]
[1641237041432,1.33139,3756.1,3756.0,5.3248]
[1641237042075,1.33139,3756.1,3756.0,4.64592]
[1641237042676,0.00341054,3756.6,3756.0,5.64592]
[1641237042976,0.66898054,3756.6,3756.0,5.94727198]
[1641237043179,0.00284211,3756.5,3756.1,1.0]
[1641237043676,0.00227369,3756.4,3756.1,1.0]
[1641237044175,0.00170527,3756.3,3756.2,6.0034]
[1641237044579,0.00170527,3756.3,3756.2,7.0034]
[1641237048038,2.70170527,3756.3,3756.2,7.0034]
[1641237050076,2.70170527,3756.3,3756.2,0.67735]
[1641237050277,3.30170527,3756.3,3756.0,0.00135198]
[1641237050475,0.43330327,3755.5,3755.4,1.77864706]
[1641237050875,0.43330327,3755.5,3755.4,0.00170527]
[1641237051275,0.43330327,3755.5,3754.9,1.88400506]
[1641237051276,0.43330327,3755.5,3755.0,0.00397897]
[1641237051479,0.43330327,3755.5,3755.1,0.0598562]
[1641237051480,0.66588,3755.4,3755.1,0.0598562]
[1641237051677,1.33176,3755.4,3755.1,0.0598562]
[1641237051878,1.33176,3755.4,3755.2,0.00284212]
[1641237053622,1.33176,3755.4,3755.3,0.00114017]
[1641237054022,1.33176,3755.4,3755.3,0.00341387]
[1641237054622,1.33176,3755.4,3755.3,0.10877187]
[1641237055333,0.66588,3755.4,3755.3,0.10877187]
[1641237056972,0.81627703,3755.4,3755.3,2.98601206]
[1641237057774,3.51627703,3755.4,3755.3,2.98601206]
[1641237060276,3.36588,3755.4,3755.3,0.10877187]
[1641237062625,2.7,3755.4,3755.3,0.10877187]
[1641237063223,2.7,3755.4,3755.3,5.43447187]
[1641237063421,2.7,3755.4,3755.3,8.08124786]
[1641237063621,2.7,3755.4,3755.3,9.08124786]
[1641237064383,2.7,3755.4,3755.3,6.43447187]
[1641237064776,2.7,3755.4,3755.3,7.10005187]
[1641237065179,2.7,3755.4,3755.3,9.60658624]
[1641237065377,2.7,3755.4,3755.3,6.99469387]
[1641237066282,2.7,3755.4,3755.3,7.10005187]
[1641237067688,2.7,3755.4,3755.3,9.60346104]
[1641237068522,2.7,3755.4,3755.3,7.10005187]
[1641237072878,2.65,3755.4,3755.3,7.10005187]
[1641237073073,2.65,3755.4,3755.3,6.10005187]
[1641237074074,2.65,3755.4,3755.3,8.63340235]
[1641237074274,2.65,3755.4,3755.3,6.10005187]
[1641237074475,2.65,3755.4,3755.3,7.10005187]
[1641237076032,3.27e-06,3755.5,3755.4,5.45]
[1641237076229,3.27e-06,3755.5,3755.4,32.47986084]
[1641237076427,0.00284211,3756.2,3755.8,0.66541]
[1641237076627,0.00284211,3756.2,3755.9,5.707]
[1641237076828,0.00227369,3756.1,3755.9,5.707]
[1641237077027,0.00227369,3756.1,3756.0,2.68391488]
[1641237077228,4.0302,3757.4,3756.0,8.86181488]
[1641237077428,4.0302,3757.4,3756.6,1.33071]
[1641237077629,5.8489,3757.9,3756.9,0.6653534]
[1641237077630,0.66536,3757.7,3756.9,0.6653534]
[1641237077831,0.05949899,3757.1,3757.0,5.3234]
[1641237078228,0.05949899,3757.1,3757.0,6.3234]
[1641237079232,0.6654,3757.3,3757.0,6.3234]
[1641237079470,0.6654,3757.3,3757.1,1.0]
[1641237079672,0.00852635,3757.2,3757.1,1.0]
[1641237079871,0.67395635,3757.2,3757.1,5.3232]
[1641237080171,0.67395635,3757.2,3757.1,6.3232]
[1641237080773,0.67395635,3757.2,3757.1,9.21751325]
[1641237082874,0.67395635,3757.2,3757.1,8.21751325]
[1641237084238,0.97395635,3757.2,3757.1,8.21751325]
[1641237084432,1.27395635,3757.2,3757.1,8.21751325]
[1641237084831,0.97395635,3757.2,3757.1,8.21751325]
[1641237085032,0.67395635,3757.2,3757.1,8.21751325]
[1641237085636,0.67395635,3757.2,3757.1,8.21843487]
[1641237086038,0.62395635,3757.2,3757.1,8.21843487]
[1641237088673,0.62395635,3757.2,3757.1,10.51843487]
[1641237092025,0.62395635,3757.2,3757.1,7.62412162]
[1641237096279,0.77428841,3757.2,3757.1,7.62412162]
[1641237096678,0.62395635,3757.2,3757.1,7.62412162]
[1641237100336,0.92395635,3757.2,3757.1,7.62412162]
[1641237101145,1.22395635,3757.2,3757.1,7.62412162]
[1641237102486,1.37429026,3757.2,3757.1,7.62412162]
[1641237103386,1.22395635,3757.2,3757.1,7.62412162]
[1641237103588,0.92395635,3757.2,3757.1,7.62412162]
[1641237104890,0.00852635,3757.2,3757.1,7.62412162]
[1641237105732,0.15885399,3757.2,3757.1,10.55472251]
[1641237106531,0.15885399,3757.2,3757.1,11.55472251]
[1641237107730,0.15885399,3757.2,3757.1,11.55564413]
[1641237108131,0.00852635,3757.2,3757.1,11.55564413]
[1641237109693,0.66551,3757.4,3757.1,11.55564413]
[1641237110093,0.00909477,3757.3,3757.2,1.0]
[1641237110293,0.00909477,3757.3,3757.2,6.3231]
[1641237110493,0.00909477,3757.3,3757.2,9.25370089]
[1641237110494,0.15940654,3757.3,3757.2,9.25370089]
[1641237110893,0.45940654,3757.3,3757.2,9.25370089]
[1641237114739,0.30909477,3757.3,3757.2,9.25370089]
[1641237115038,0.00909477,3757.3,3757.2,9.25370089]
[1641237118395,0.00909477,3757.3,3757.2,9.25552051]
[1641237118596,0.00909477,3757.3,3757.2,8.25552051]
[1641237123137,0.00909477,3757.3,3757.2,9.25552051]
[1641237123735,0.00909477,3757.3,3757.2,8.25552051]
[1641237125187,0.00909477,3757.3,3757.2,9.25552051]
[1641237125385,0.00909477,3757.3,3757.2,8.25552051]
[1641237126988,0.00909477,3757.3,3757.2,9.25552051]
[1641237127191,0.00909477,3757.3,3757.2,8.25552051]
[1641237129032,0.00909477,3757.3,3757.2,8.25643032]
[1641237129634,0.6654511,3758.0,3757.2,8.25643032]
[1641237129635,1.23164401,3758.4,3757.4,2.6]
[1641237129840,0.13373184,3758.4,3757.8,0.01273463]
[1641237130034,0.13373184,3758.4,3757.9,5.7041]
[1641237130235,0.13373184,3758.4,3758.0,2.46967338]
[1641237130434,0.13373184,3758.4,3758.1,5.3218]
[1641237130633,2.6995981,3758.7,3758.2,1.0]
[1641237130837,0.66517,3758.8,3758.3,5.3216]
[1641237131037,0.00738951,3758.6,3758.4,1.0]
[1641237131237,0.00738951,3758.6,3758.5,5.3213]
[1641237131437,0.66517,3759.1,3758.5,5.3213]
[1641237131737,0.67540162,3759.1,3758.5,6.98644]
[1641237131989,0.67540162,3759.1,3758.6,1.0]
[1641237132592,0.67540162,3759.1,3759.0,1.41170888]
[1641237134088,0.01023162,3759.1,3759.0,1.41170888]
[1641237134490,0.01023162,3759.1,3759.0,2.24200888]
[1641237134896,0.01023162,3759.1,3759.0,2.90708888]
[1641237135090,0.01023162,3759.1,3759.0,3.90708888]
[1641237136143,0.01023162,3759.1,3759.0,4.20708888]
[1641237136946,0.01023162,3759.1,3759.0,12.40262005]
[1641237137345,0.01023162,3759.1,3759.0,15.40777184]
[1641237138145,0.01023162,3759.1,3759.0,13.10114067]
[1641237138348,0.01023162,3759.1,3759.0,12.91484067]
[1641237138648,0.01023162,3759.1,3759.0,12.61484067]
[1641237138848,0.01023162,3759.1,3759.0,11.94976067]
[1641237139594,0.01023162,3759.1,3759.0,14.24976067]
[1641237140198,0.01023162,3759.1,3759.0,14.35511967]
[1641237140898,0.01023162,3759.1,3759.0,14.36770567]